[Event "Mitropa Cup Open 2024"]
[Site "Apolda"]
[Date "2024.02.19"]
[Round "5.12"]
[White "Gallagher, Joseph G."]
[Black "Nemec, Jachym"]
[Result "1-0"]
[ECO "B30"]
[WhiteElo "2427"]
[BlackElo "2393"]
[Annotator "TA"]
[PlyCount "87"]
[EventDate "2024.02.15"]
[EventType "team-tourn"]
[EventCountry "GER"]
[SourceTitle "playchess.com"]
[Source "ChessBase"]
[SourceQuality "1"]
[WhiteTeam "Switzerland"]
[BlackTeam "Czech Republic"]
[WhiteTeamCountry "SUI"]
[BlackTeamCountry "CZE"]
[TimeControl "40/5400+30:1800+30"]

{[%evp 16,87,0,4,10,0,0,-23,-16,-27,-11,-18,0,0,0,-7,0,0,0,0,0,0,0,0,0,0,0,0,0,0,0,-32,-18,-27,31,21,99,41,57,75,83,63,180,110,131,135,134,126,156,152,149,151,145,157,220,222,254,242,384,332,501,489,507,462,407,414,407,407,407,393,1200,639,1070,906]} 1. e4 {[%emt 0:00:03]} c5 {[%emt 0:00:09]} 2. Nf3 {[%emt 0:00:09]} Nc6 {[%emt 0:00:22]} 3. Bb5 {[%emt 0:00:44]} e6 {[%emt 0:00:38]} 4. O-O {[%emt 0:05:32]} Nge7 {[%emt 0:00:05]} 5. Nc3 {[%emt 0:06:04]} a6 {[%emt 0:01:43]} 6. Bxc6 {[%emt 0:00:26]} Nxc6 {[%emt 0:00:17]} 7. d4 {[%emt 0:00:12]} cxd4 {[%emt 0:00:12]} 8. Nxd4 {[%emt 0:00:06]} Qc7 {[%emt 0:02:15]} 9. Nxc6 {[%emt 0:08:11]} dxc6 {[%emt 0:10:52]} 10. a4 {[%emt 0:07:36]} a5 {[%emt 0:05:09]} 11. f4 {[%emt 0:01:54]} Bc5+ {[%emt 0:06:21] Black has an edge.} 12. Kh1 {[%emt 0:00:05]} b6 {[%emt 0:01:39]} 13. Qg4 {[%emt 0:06:11]} f6 {[%emt 0:04:07]} 14. Qh5+ {[%emt 0:19:09]} Qf7 {[%emt 0:00:52]} 15. Qf3 {[%emt 0:00:04]} Ba6 {[%emt 0:04:26]} 16. Rd1 {[%emt 0:02:40]} O-O {[%emt 0:00:27]} 17. Be3 {[%emt 0:01:34]} Qe7 {[%emt 0:08:15]} 18. Bxc5 {[%emt 0:01:37]} bxc5 {[%emt 0:04:57]} 19. Rd2 {[%emt 0:01:20]} Rad8 {[%emt 0:00:45]} 20. Rad1 {[%emt 0:00:56]} Rxd2 {[%emt 0:01:04]} 21. Rxd2 {[%emt 0:00:03]} e5 {[%emt 0:01:57]} 22. h3 {[%emt 0:02:53]} Rb8 {[%emt 0:08:43]} 23. Nd1 {[%emt 0:14:18]} exf4 {[%emt 0:11:53]} 24. Qxf4 {[%emt 0:04:33]} Re8 {[%emt 0:00:26]} (24... Rb4 $11) 25. Nc3 {[%emt 0:00:51]} c4 {[%emt 0:06:25]} (25... Bb7 $11 {keeps the balance.}) 26. Qd6 {[%emt 0:03:54]} (26. Qf5 $16) 26... Bb7 $14 {[%emt 0:02:04]} 27. Qd4 {[%emt 0:03:11]} Kh8 {[%emt 0:06:13]} 28. Qxc4 {[%emt 0:00:39][%cal Oe4e5]} f5 {[%emt 0:00:28]} 29. e5 {[%emt 0:01:05]} (29. exf5 $2 {too greedy.} Qe1+ 30. Kh2 Qxd2 $19) ({Better is} 29. Rf2 $18) 29... Qxe5 {[%emt 0:03:51]} 30. Re2 {[%emt 0:00:40][%cal Bd2e2,Be2e5,Be5e7,Be7c7,Bc7c5,Bc5a5,Ba5e5,Be5e3,Be3a3][%mdl 32]} Qb8 {[%emt 0:00:05] [#]} 31. Qf4 $3 $40 {[%emt 0:02:19][%mdl 640] White has strong attack. White is more active.} c5 {[%emt 0:01:42]} (31... Qa8 32. Rxe8+) 32. Qxb8 $1 {[%emt 0:05:11]} ({Don't take} 32. Qxf5 h6 $16) 32... Rxb8 $16 {[%emt 0:00:02][%cal Be8b8,Bb8d8,Bd8d2][%mdl 4128] Endgame. KRB-KRN} 33. Re5 {[%emt 0:00:10][%csl LRc5,LRf5]} Rd8 {[%emt 0:01:41] [#]} 34. Re7 $1 {[%emt 0:01:05]} ({Don't play} 34. Rxc5 $6 Rd2 $11) (34. Rxf5 Kg8 $14) 34... Bc6 {[%emt 0:03:31]} (34... Rb8 $16 35. Kg1 g6) 35. Rc7 $18 {[%emt 0:00:20]} Be4 {[%emt 0:02:16]} 36. Rxc5 {[%emt 0:00:55]} h6 {[%emt 0:00:17]} (36... Bxc2 $142 37. Rxa5 Kg8) 37. Rxa5 {[%emt 0:01:04]} Rd2 {[%emt 0:00:24]} (37... Bxc2 {keeps fighting.} 38. b4 h5) 38. Nxe4 {[%emt 0:00:57]} fxe4 {[%emt 0:00:01] KR-KR} 39. Kg1 {[%emt 0:00:43]} e3 {[%emt 0:01:19] ...Rd1+ would now be deadly.} 40. Re5 {[%emt 0:00:25]} Rxc2 {[%emt 0:00:23]} 41. Rxe3 {[%emt 0:30:05]} Rxb2 {[%emt 0:30:27] [#]} 42. Ra3 {[%emt 0:00:05] Prevents Ra2. And now a5 would win.} Rb6 $2 {[%emt 0:01:08]} (42... Rb7 43. a5 Kg8) 43. a5 {[%emt 0:00:05]} Ra6 {[%emt 0:00:03]} 44. Kf2 {[%emt 0:00:04] Weighted Error Value: White=0.09 (flawless) /Black=0.33.  Mistake:       	White=2     	Black=7      Inaccurate:     	White=1     	Black=1      OK:         	White=14    	Black=12     Best:        	White=4     	Black=2      Strong:       	White=2     	---} 1-0

[Event "Mitropa Cup Open 2024"]
[Site "Apolda"]
[Date "2024.02.19"]
[Round "5.13"]
[White "Moroni, Luca Jr"]
[Black "Baidetskyi, Valentin"]
[Result "1/2-1/2"]
[ECO "E70"]
[WhiteElo "2601"]
[BlackElo "2499"]
[Annotator "TA"]
[PlyCount "60"]
[EventDate "2024.02.15"]
[EventType "team-tourn"]
[EventCountry "GER"]
[SourceTitle "playchess.com"]
[Source "ChessBase"]
[SourceQuality "1"]
[WhiteTeam "Italy"]
[BlackTeam "Austria"]
[WhiteTeamCountry "ITA"]
[BlackTeamCountry "AUT"]
[TimeControl "40/5400+30:1800+30"]

{[%evp 20,60,12,6,11,-20,-24,-19,6,5,9,4,10,2,7,15,13,10,8,-30,-31,-12,-22,-36,-13,-12,0,0,0,-7,0,0,0,0,0,0,0,0,0,0,0,0,0]} 1. d4 {[%emt 0:00:04]} Nf6 {[%emt 0:00:03]} 2. c4 {[%emt 0:00:05]} g6 {[%emt 0:00:04]} 3. Nc3 {[%emt 0:00:09]} Bg7 {[%emt 0:00:07]} 4. e4 {[%emt 0:00:05]} d6 {[%emt 0:00:03]} 5. Bd3 {[%emt 0:00:07]} O-O {[%emt 0:00:06]} 6. Nge2 {[%emt 0:00:04]} Nc6 {[%emt 0:00:08]} 7. O-O {[%emt 0:00:04]} e5 {[%emt 0:00:34]} 8. d5 {[%emt 0:00:04]} Nd4 {[%emt 0:00:04]} 9. Nxd4 {[%emt 0:00:04]} exd4 {[%emt 0:00:05]} 10. Ne2 {[%emt 0:00:03]} Re8 {[%emt 0:02:59]} 11. f3 {[%emt 0:03:44][%cal Oc1g5]} Nd7 {[%emt 0:03:11][%cal Bf6d7,Bd7e5,Be5c4][%mdl 32]} 12. Bc2 {[%emt 0:02:23]} Ne5 {[%emt 0:02:26]} 13. Nxd4 {[%emt 0:11:05]} Nxc4 {[%emt 0:10:38]} 14. Bb3 {[%emt 0:06:13]} Na5 {[%emt 0:25:50]} 15. Be3 {[%emt 0:30:12]} Bd7 {[%emt 0:02:14]} 16. Rc1 {[%emt 0:04:25]} c5 {[%emt 0:01:28]} 17. dxc6 {[%emt 0:00:15]} bxc6 {[%emt 0:00:01]} 18. Ba4 $1 {[%emt 0:02:37]} d5 {[%emt 0:00:47]} 19. Bf2 {[%emt 0:11:09]} dxe4 {[%emt 0:06:16]} 20. fxe4 {[%emt 0:03:35]} Rxe4 {[%emt 0:03:24] [#] Hoping for ...Bxd4.} 21. Bc2 {[%emt 0:11:54]} Bg4 {[%emt 0:02:32]} 22. Nf3 {[%emt 0:01:43] The position is equal.} Re8 {[%emt 0:07:21] Strongly threatening ...Qc7.} 23. b4 {[%emt 0:04:31] Black must now prevent Qxd8.} Nc4 {[%emt 0:03:41] aiming for ...Bxf3.} 24. Bb3 {[%emt 0:02:40]} Qxd1 {[%emt 0:02:32]} 25. Rfxd1 {[%emt 0:00:55]} Ne5 {[%emt 0:01:34]} 26. Nxe5 {[%emt 0:00:16]} Bxe5 {[%emt 0:00:32]} 27. Re1 {[%emt 0:01:44][%cal Oc1c5]} Bd7 {[%emt 0:02:42]} 28. Red1 {[%emt 0:00:13]} Bg4 {[%emt 0:00:48]} 29. Re1 {[%emt 0:00:04][%cal Oc1c5]} Bd7 {[%emt 0:00:04]} 30. Red1 {[%emt 0:00:21]} Bg4 {Not much happened in this game.   Weighted Error Value: White=0.05 (flawless) /Black=0.05 (flawless) .  Inaccurate:     	White=2     	---        OK:         	White=9     	Black=10     Best:        	White=4     	---        Strong:       	White=1     	---} 1/2-1/2

[Event "Mitropa Cup Open 2024"]
[Site "Apolda"]
[Date "2024.02.19"]
[Round "5.14"]
[White "Peyrer, Konstantin"]
[Black "Brunello, Sabino"]
[Result "1/2-1/2"]
[ECO "D85"]
[WhiteElo "2439"]
[BlackElo "2512"]
[Annotator "TA"]
[PlyCount "80"]
[EventDate "2024.02.15"]
[EventType "team-tourn"]
[EventCountry "GER"]
[SourceTitle "playchess.com"]
[Source "ChessBase"]
[SourceQuality "1"]
[WhiteTeam "Austria"]
[BlackTeam "Italy"]
[WhiteTeamCountry "AUT"]
[BlackTeamCountry "ITA"]
[TimeControl "40/5400+30:1800+30"]

{[%evp 19,80,1,3,0,0,0,0,0,0,5,0,0,0,0,0,0,0,0,0,0,9,0,13,0,0,0,0,0,0,-12,-8,0,56,-78,-72,-69,-67,-80,-66,-76,-79,-85,-85,-73,-45,-34,-35,-43,-42,-44,-41,-41,-37,-45,-45,-45,-43,-46,-46,-53,-53,-65,-65]} 1. d4 {[%emt 0:00:07]} Nf6 {[%emt 0:00:07]} 2. c4 {[%emt 0:00:06]} g6 {[%emt 0:00:17]} 3. Nc3 {[%emt 0:00:08]} d5 {[%emt 0:00:07]} 4. cxd5 {[%emt 0:00:07]} Nxd5 {[%emt 0:00:03]} 5. e4 {[%emt 0:00:07]} Nxc3 {[%emt 0:00:03]} 6. bxc3 {[%emt 0:00:05]} Bg7 {[%emt 0:00:03]} 7. Nf3 {[%emt 0:00:13]} c5 {[%emt 0:01:14]} 8. Bb5+ {[%emt 0:00:20]} Nc6 {[%emt 0:01:24]} 9. O-O {[%emt 0:00:15]} O-O {[%emt 0:02:53]} 10. Bxc6 {[%emt 0:00:47]} bxc6 {[%emt 0:00:02]} 11. Qc2 {[%emt 0:00:07]} cxd4 {[%emt 0:06:30]} 12. cxd4 {[%emt 0:00:08][%cal Oc1e3]} Bg4 {[%emt 0:03:19]} 13. Ne5 {[%emt 0:00:13] The position is equal.} Qxd4 {[%emt 0:03:22]} 14. Bb2 {[%emt 0:00:19]} Qb6 {[%emt 0:04:03]} 15. Rab1 {[%emt 0:00:18]} Bxe5 {[%emt 0:01:05]} 16. Bxe5 {[%emt 0:00:05]} Qa6 {[%emt 0:00:26] [#] ...Be2 is the strong threat.} 17. Ba1 {[%emt 0:12:12]} f6 {[%emt 0:10:09]} 18. Qb3+ {[%emt 0:07:18]} Rf7 {[%emt 0:05:21]} 19. f3 {[%emt 0:05:57]} Bd7 {[%emt 0:02:28]} 20. Rfd1 {[%emt 0:10:45]} Qc8 {[%emt 0:01:10]} 21. Qb7 {[%emt 0:07:00]} e5 {[%emt 0:11:50]} (21... Qxb7 22. Rxb7 Bc8 23. Rc7 $16) 22. Rd6 {[%emt 0:05:25]} Qxb7 {[%emt 0:04:21]} 23. Rxb7 {[%emt 0:00:09]} Be8 {[%emt 0:00:20]} 24. Rxf7 {[%emt 0:00:11]} Kxf7 $11 {[%emt 0:00:24][%mdl 4096] Endgame. KRB-KRB} 25. f4 {[%emt 0:00:08]} Rb8 {[%emt 0:02:14]} (25... exf4 $11 26. Rxf6+ (26. Bxf6 Rb8 $11) 26... Kg8) 26. Bc3 {[%emt 0:01:04]} (26. fxe5 $2 Rb1+ 27. Kf2 Rxa1 $19) (26. Rxf6+ $1 $14 {is the one way to stay ahead.} Ke7 (26... Kxf6 27. Bxe5+ Ke7 28. Bxb8 $16) 27. Bxe5) 26... Rb1+ $17 {[%emt 0:03:46]} (26... exf4 27. Rxf6+ Kg8 28. Rxf4 $11) 27. Kf2 {[%emt 0:00:07]} Rc1 {[%emt 0:00:12]} 28. Bd2 {[%emt 0:00:55]} Rc2 {[%emt 0:11:53][%csl LRa2,LRf4]} 29. fxe5 {[%emt 0:00:30]} fxe5 {[%emt 0:00:59]} ({Much weaker is} 29... Rxa2 $6 30. exf6 (30. Rxf6+ Ke7 $16) 30... c5 31. e5 $14) 30. Kf3 {[%emt 0:11:12] [#]} Ke7 $1 {[%emt 0:15:34]} 31. Rd3 {[%emt 0:00:11]} c5 {[%emt 0:01:36][%cal Oe7e6]} 32. Rd5 {[%emt 0:02:07] Black is slightly better.} Bc6 {[%emt 0:06:00]} (32... Rxa2 33. Rxe5+ Kf6 34. Bc3 $11 (34. Rxe8 Rxd2 35. e5+ Kf7 $11)) 33. Rxe5+ {[%emt 0:00:06]} Kf6 {[%emt 0:00:12]} 34. Bf4 {[%emt 0:00:05]} Rc3+ {[%emt 0:00:15]} 35. Kf2 {[%emt 0:00:09]} Ra3 {[%emt 0:00:16]} 36. Rxc5 {[%emt 0:03:25]} Bxe4 {[%emt 0:00:09]} 37. g3 {[%emt 0:00:06]} h5 {[%emt 0:01:32]} 38. Bd2 {[%emt 0:00:42]} Rxa2 {[%emt 0:00:33]} 39. Ke3 {[%emt 0:00:05] Strongly threatening Bc3+.} Bf5 {[%emt 0:00:13]} 40. Ra5 {[%emt 0:00:12]} Rxa5 {[%emt 0:04:05] Weighted Error Value: White=0.09 (flawless) /Black=0.04 (flawless) .  Mistake:       	White=1     	Black=1      Inaccurate:     	---       	Black=1      OK:         	White=14    	Black=19     Best:        	White=3     	Black=1      Strong:       	---       	Black=1} 1/2-1/2

[Event "Mitropa Cup Open 2024"]
[Site "Apolda"]
[Date "2024.02.19"]
[Round "5.15"]
[White "David, Alberto"]
[Black "Morgunov, Marc"]
[Result "1/2-1/2"]
[ECO "E73"]
[WhiteElo "2525"]
[BlackElo "2368"]
[Annotator "TA"]
[PlyCount "57"]
[EventDate "2024.02.15"]
[EventType "team-tourn"]
[EventCountry "GER"]
[SourceTitle "playchess.com"]
[Source "ChessBase"]
[SourceQuality "1"]
[WhiteTeam "Italy"]
[BlackTeam "Austria"]
[WhiteTeamCountry "ITA"]
[BlackTeamCountry "AUT"]
[TimeControl "40/5400+30:1800+30"]

{[%evp 13,57,58,60,56,66,64,69,73,66,70,75,34,17,50,41,6,20,0,11,0,0,0,7,12,14,0,0,0,0,0,0,0,0,0,0,0,0,0,0,0,0,0,0,0,0,0]} 1. d4 {[%emt 0:00:06]} Nf6 {[%emt 0:00:34]} 2. c4 {[%emt 0:00:09]} g6 {[%emt 0:00:39]} 3. Nc3 {[%emt 0:00:12]} Bg7 {[%emt 0:00:21]} 4. e4 {[%emt 0:00:25]} d6 {[%emt 0:00:10]} 5. Be2 {[%emt 0:00:26]} O-O {[%emt 0:01:06]} 6. Be3 {[%emt 0:00:06]} e5 {[%emt 0:00:20]} 7. d5 {[%emt 0:00:11]} Na6 {[%emt 0:00:15]} 8. g4 {[%emt 0:01:22][%cal Bg2g4,Bg4g5][%mdl 32]} Nc5 {[%emt 0:00:20]} 9. f3 {[%emt 0:00:50]} h5 {[%emt 0:00:20]} 10. g5 {[%emt 0:00:17] White is slightly better.} Nh7 {[%emt 0:00:13]} 11. h4 {[%emt 0:02:19]} f6 {[%emt 0:00:37]} 12. Qd2 {[%emt 0:01:54]} fxg5 $1 {[%emt 0:00:24]} 13. hxg5 {[%emt 0:00:06]} Rf4 {[%emt 0:00:10]} 14. b4 {[%emt 0:02:37]} Na6 {[%emt 0:00:17] The position is equal.} 15. Rb1 {[%emt 0:00:39]} Nxg5 {[%emt 0:00:37]} 16. c5 {[%emt 0:02:22]} dxc5 $1 {[%emt 0:01:05]} 17. bxc5 {[%emt 0:02:42]} b6 $1 {[%emt 0:01:01]} 18. d6 {[%emt 0:02:12] [#] aiming for Nd5.} Nxc5 $1 {[%emt 0:00:28][%cal Oc7c6] White must now prevent ...c6!} 19. Bxc5 {[%emt 0:02:16]} bxc5 {[%emt 0:00:12]} 20. Qd5+ {[%emt 0:01:29]} Be6 {[%emt 0:00:15]} 21. dxc7 {[%emt 0:00:32]} Qf8 {[%emt 0:00:19]} (21... Bxd5 $2 {perishes.} 22. cxd8=B (22. cxd8=Q+ Rxd8 23. Nxd5 Rf7 $18) 22... Rxd8 23. Nxd5 $18) 22. Qxa8 {[%emt 0:00:25]} Qxa8 {[%emt 0:00:05]} ({Avoid the trap} 22... Nxf3+ $2 23. Nxf3 Qxa8 24. Rb8+ Rf8 25. Rxa8 Rxa8 26. Ng5 $18) 23. Rb8+ {[%emt 0:00:06]} Rf8 {[%emt 0:00:03]} 24. Rxa8 {[%emt 0:00:22]} Rxa8 {[%emt 0:00:05]} 25. Ba6 {[%emt 0:06:37] Repels Rc8} Bc8 $1 {[%emt 0:00:31]} 26. Bc4+ {[%emt 0:02:59]} Be6 {[%emt 0:00:15]} 27. Ba6 {[%emt 0:03:46]} Bc8 $1 {[%emt 0:00:18]} 28. Bc4+ {[%emt 0:01:05]} Be6 {[%emt 0:00:06]} 29. Ba6 {[%emt 0:39:22] Weighted Error Value: White=0.06 (flawless) /Black=0.01 (flawless) .  Inaccurate:     	White=2     	---        OK:         	White=14    	Black=6      Best:        	White=1     	Black=4      Strong:       	---       	Black=6} 1/2-1/2

[Event "Mitropa Cup Open 2024"]
[Site "Apolda"]
[Date "2024.02.19"]
[Round "5.16"]
[White "Dotzer, Lukas"]
[Black "Perossa, Nicolas"]
[Result "0-1"]
[ECO "C65"]
[WhiteElo "2335"]
[BlackElo "2277"]
[Annotator "RC"]
[PlyCount "144"]
[EventDate "2024.02.15"]
[EventType "team-tourn"]
[EventCountry "GER"]
[SourceTitle "playchess.com"]
[Source "ChessBase"]
[SourceQuality "1"]
[WhiteTeam "Austria"]
[BlackTeam "Italy"]
[WhiteTeamCountry "AUT"]
[BlackTeamCountry "ITA"]
[TimeControl "40/5400+30:1800+30"]

1. e4 {[%emt 0:00:02]} e5 {[%emt 0:00:09]} 2. Nf3 {[%emt 0:00:04]} Nc6 {[%emt 0:00:08]} 3. Bb5 {[%emt 0:00:06]} Bc5 {[%emt 0:03:07]} 4. c3 {[%emt 0:04:42]} Nf6 {[%emt 0:00:05]} 5. O-O {[%emt 0:17:45]} O-O {[%emt 0:09:54]} 6. d4 {[%emt 0:04:08]} Bb6 {[%emt 0:01:25]} 7. dxe5 {[%emt 0:08:17]} Nxe4 {[%emt 0:08:50]} 8. Qd5 {[%emt 0:01:46]} Nc5 {[%emt 0:00:38]} 9. Be3 {[%emt 0:12:54]} Qe7 {[%emt 0:16:18]} 10. Nbd2 {[%emt 0:11:20]} Qe6 {[%emt 0:05:57]} 11. Qxe6 {[%emt 0:03:33]} Nxe6 {[%emt 0:00:05]} 12. Nc4 {[%emt 0:02:58]} Bc5 {[%emt 0:27:37]} 13. Bxc5 {[%emt 0:07:04]} Nxc5 {[%emt 0:00:01]} 14. b4 {[%emt 0:05:42]} Ne6 {[%emt 0:08:49]} 15. Rad1 {[%emt 0:04:17]} a6 {[%emt 0:08:31]} 16. Bxc6 {[%emt 0:00:07]} dxc6 {[%emt 0:00:01]} 17. Na5 {[%emt 0:04:22]} c5 {[%emt 0:02:27]} 18. Nb3 {[%emt 0:02:51]} cxb4 {[%emt 0:00:04]} 19. cxb4 {[%emt 0:00:07]} b6 {[%emt 0:00:21]} 20. Rc1 {[%emt 0:02:57]} Bb7 {[%emt 0:01:17]} 21. Nfd4 {[%emt 0:03:15]} Nf4 {[%emt 0:02:37]} 22. f3 {[%emt 0:01:15]} Rac8 {[%emt 0:00:24]} 23. Rfd1 {[%emt 0:01:47]} Rfe8 {[%emt 0:01:05]} 24. g3 {[%emt 0:00:31]} Nd5 {[%emt 0:00:47]} 25. f4 {[%emt 0:00:32]} Nxb4 {[%emt 0:01:26]} 26. a3 {[%emt 0:00:28]} Nd5 {[%emt 0:00:00]} 27. Nc6 {[%emt 0:00:13]} Bxc6 {[%emt 0:01:09]} 28. Rxc6 {[%emt 0:00:05]} Rcd8 {[%emt 0:00:23]} 29. Rc2 {[%emt 0:01:14]} Rd7 {[%emt 0:00:40]} 30. Rcd2 {[%emt 0:00:29]} Red8 {[%emt 0:00:05]} 31. f5 {[%emt 0:00:27]} Kf8 {[%emt 0:00:54]} 32. Nd4 {[%emt 0:00:35]} Ne3 {[%emt 0:00:44]} 33. e6 {[%emt 0:00:32]} fxe6 {[%emt 0:00:26]} 34. fxe6 {[%emt 0:00:30]} Rd6 {[%emt 0:00:26]} 35. Nc6 {[%emt 0:00:32]} Re8 {[%emt 0:00:26]} 36. Rxd6 {[%emt 0:00:28]} cxd6 {[%emt 0:00:01]} 37. Rxd6 {[%emt 0:00:18]} Nf5 {[%emt 0:00:47]} 38. Rd5 {[%emt 0:00:28]} g6 {[%emt 0:00:30]} 39. g4 {[%emt 0:00:47]} Rxe6 {[%emt 0:00:34]} 40. Rd8+ {[%emt 0:00:25]} Kg7 {[%emt 0:00:47]} 41. Nb4 {[%emt 0:21:46]} Ne3 {[%emt 0:07:29]} 42. g5 {[%emt 0:02:47]} a5 {[%emt 0:01:16]} 43. Nd3 {[%emt 0:04:02]} Nc4 {[%emt 0:09:56]} 44. Rd7+ {[%emt 0:02:09]} Kf8 {[%emt 0:00:06]} 45. Rxh7 {[%emt 0:01:29]} Nxa3 {[%emt 0:00:59]} 46. Nf4 {[%emt 0:00:12]} Rd6 {[%emt 0:00:10]} 47. h4 {[%emt 0:00:25]} Nc4 {[%emt 0:01:50]} 48. Ra7 {[%emt 0:01:13]} Ne5 {[%emt 0:06:01]} 49. Kg2 {[%emt 0:00:11]} Nc6 {[%emt 0:02:30]} 50. Rb7 {[%emt 0:00:44]} Ne7 {[%emt 0:00:32]} 51. Ra7 {[%emt 0:00:29]} Rc6 {[%emt 0:01:34]} 52. Kf3 {[%emt 0:00:23]} Rc3+ {[%emt 0:00:38]} 53. Kg4 {[%emt 0:00:33]} Rc4 {[%emt 0:00:14]} 54. Kf3 {[%emt 0:00:29]} Ke8 {[%emt 0:01:23]} 55. h5 {[%emt 0:00:36]} gxh5 {[%emt 0:00:06]} 56. g6 {[%emt 0:00:33]} Rc3+ {[%emt 0:00:54]} 57. Kf2 {[%emt 0:00:21]} h4 {[%emt 0:02:00]} 58. Rxe7+ {[%emt 0:00:33]} Kxe7 {[%emt 0:00:04]} 59. Nd5+ {[%emt 0:00:04]} Kf8 {[%emt 0:00:20]} 60. Nxc3 {[%emt 0:00:06]} Kg7 {[%emt 0:00:06]} 61. Kf3 {[%emt 0:00:57]} Kxg6 {[%emt 0:00:05]} 62. Kg4 {[%emt 0:00:29]} h3 {[%emt 0:00:39]} 63. Kxh3 {[%emt 0:00:05]} Kf5 {[%emt 0:00:04]} 64. Kg3 {[%emt 0:00:53]} Ke5 {[%emt 0:00:03]} 65. Na4 {[%emt 0:01:03]} b5 {[%emt 0:00:15]} 66. Nc3 {[%emt 0:00:05]} b4 {[%emt 0:00:13]} 67. Kf3 {[%emt 0:00:54]} Kd4 {[%emt 0:00:31]} 68. Na4 {[%emt 0:00:26]} Kd3 {[%emt 0:00:42]} 69. Nc5+ {[%emt 0:00:38]} Kc2 {[%emt 0:02:08]} 70. Nb7 {[%emt 0:00:27]} a4 {[%emt 0:00:33]} 71. Nc5 {[%emt 0:00:20]} a3 {[%emt 0:00:10]} 72. Na6 {[%emt 0:00:07]} Kc3 {[%emt 0:00:07]} 0-1

[Event "Mitropa Cup Open 2024"]
[Site "Apolda"]
[Date "2024.02.19"]
[Round "5.17"]
[White "Bluebaum, Matthias"]
[Black "Plenca, Jadranko"]
[Result "1/2-1/2"]
[ECO "D35"]
[WhiteElo "2655"]
[BlackElo "2429"]
[Annotator "TA"]
[PlyCount "70"]
[EventDate "2024.02.15"]
[EventType "team-tourn"]
[EventCountry "GER"]
[SourceTitle "playchess.com"]
[Source "ChessBase"]
[SourceQuality "1"]
[WhiteTeam "Germany"]
[BlackTeam "Croatia"]
[WhiteTeamCountry "GER"]
[BlackTeamCountry "CRO"]
[TimeControl "40/5400+30:1800+30"]

{[%evp 15,70,8,21,11,33,28,30,23,33,30,35,39,38,35,39,42,26,8,33,28,27,7,0,0,0,0,0,2,2,0,0,0,5,12,44,9,10,0,7,-141,-116,-123,-123,-120,-102,-102,-95,-93,-90,-102,0,-1,0,-9,0,0,0]} 1. c4 {[%emt 0:00:03]} e6 {[%emt 0:01:22]} 2. Nc3 {[%emt 0:00:24]} d5 {[%emt 0:00:18]} 3. d4 {[%emt 0:00:08]} Nf6 {[%emt 0:00:35]} 4. cxd5 {[%emt 0:00:05]} exd5 {[%emt 0:00:10]} 5. Bg5 {[%emt 0:00:09][%cal Bc1g5,Bg5h4,Bh4g3][%mdl 32]} c6 {[%emt 0:01:13]} 6. e3 {[%emt 0:00:16]} h6 {[%emt 0:00:55]} 7. Bh4 {[%emt 0:00:42]} Be7 {[%emt 0:00:48]} 8. Bd3 {[%emt 0:00:10]} O-O {[%emt 0:00:17]} 9. Bg3 {[%emt 0:00:24]} Ne8 {[%emt 0:04:16]} 10. Nf3 {[%emt 0:01:04]} Nd6 {[%emt 0:00:47]} 11. Qc2 {[%emt 0:01:07] White has an edge.} Re8 {[%emt 0:01:04]} 12. h3 {[%emt 0:04:33]} Bf8 {[%emt 0:04:29]} 13. O-O {[%emt 0:00:47]} Be6 {[%emt 0:04:56]} 14. Rad1 {[%emt 0:05:26]} Nd7 {[%emt 0:04:01]} 15. Ne5 {[%emt 0:01:11]} Rc8 {[%emt 0:05:59]} 16. Kh1 {[%emt 0:05:19]} b5 {[%emt 0:12:06]} 17. b3 {[%emt 0:08:22]} Qa5 {[%emt 0:10:31]} 18. Rc1 {[%emt 0:03:26]} Nf6 {[%emt 0:09:04]} 19. f3 {[%emt 0:04:40]} c5 {[%emt 0:03:29]} 20. dxc5 {[%emt 0:00:41]} Rxc5 {[%emt 0:00:05]} 21. Qb2 $1 {[%emt 0:02:32] Black must now prevent b4.} Rcc8 {[%emt 0:01:57]} 22. a4 {[%emt 0:08:46]} bxa4 {[%emt 0:02:54]} 23. Nxa4 {[%emt 0:01:16]} Nf5 {[%emt 0:06:59]} 24. Bf2 {[%emt 0:04:13]} Qd8 {[%emt 0:12:26]} 25. e4 {[%emt 0:10:43]} dxe4 {[%emt 0:01:36]} 26. fxe4 {[%emt 0:00:02]} Nd6 $36 {[%emt 0:02:28][%mdl 2048] ...Rxc1 would now be deadly. Black has some pressure.} 27. Nc6 {[%emt 0:02:20] [#]} (27. Nc5 $11) 27... Rxc6 $1 $17 {[%emt 0:04:09][%mdl 512]} 28. Rxc6 {[%emt 0:00:05]} Ndxe4 {[%emt 0:00:05]} 29. Bc4 {[%emt 0:02:57]} Bxc4 {[%emt 0:01:54]} 30. Rxc4 {[%emt 0:00:26]} Qd3 {[%emt 0:00:12]} 31. Rcc1 {[%emt 0:02:40]} Bd6 {[%emt 0:01:42][%mdl 1024] And now ...Ng3+ would win. Black has strong compensation.} 32. Rcd1 {[%emt 0:03:12] [#]} Ng3+ {[%emt 0:00:38] Excellent horsemanship.} (32... Qb5 $1 $17 {next ...Nh5 is good for Black.} 33. Kg1 Qg5 34. Bxa7 Qg3 35. Rxd6 Qxd6 (35... Nxd6 36. Bf2 $11)) 33. Kg1 $11 {[%emt 0:00:05] The position is equal.} Ne2+ {[%emt 0:00:11]} 34. Kh1 {[%emt 0:00:04]} Ng3+ {[%emt 0:00:08]} (34... Qb5 $5 35. Nc3 $8 (35. Rxd6 $2 {loses.} Ng3+ 36. Kh2 Nxf1+ 37. Kg1 Ne3 $19) 35... Nxc3 (35... Qe5 $2 36. Rxd6 Nxc3 37. Rd3 $18) 36. Qxc3 Ne4 $11) 35. Kg1 {[%emt 0:00:05]} Ne2+ {[%emt 0:00:07] Weighted Error Value: White=0.13 (very precise) /Black=0.09 (flawless) .  Mistake:       	White=1     	Black=1      Inaccurate:     	White=1     	Black=1      OK:         	White=7     	Black=11     Best:        	White=4     	Black=1      Strong:       	White=1     	---        Brilliant:      	---       	Black=1} 1/2-1/2